[Event "*** Titled Tuesday Blitz"]
[Site "Chess.com"]
[Date "2019.09.03"]
[Round "9"]
[White "WPWPWP-2015"]
[Black "Vuks91"]
[Result "0-1"]
[WhiteElo "2450"]
[BlackElo "2619"]
[TimeControl "180+2"]
[EndTime "17:08:59 PDT"]
[Termination "Vuks91 won by checkmate"]

1. e4 {[%clk 0:03:01.9]} 1... c6 {[%clk 0:02:59.7]} 2. d4 {[%clk 0:03:01.9]}
2... d5 {[%clk 0:03:00.5]} 3. e5 {[%clk 0:03:03.2]} 3... Bf5 {[%clk 0:02:59.9]}
4. Be3 {[%clk 0:03:04.7]} 4... e6 {[%clk 0:02:58.4]} 5. Nd2 {[%clk 0:03:04.1]}
5... Qb6 {[%clk 0:02:59.2]} 6. Qc1 {[%clk 0:03:03.5]} 6... Nd7 {[%clk
0:02:52.3]} 7. c4 {[%clk 0:03:03.3]} 7... Ne7 {[%clk 0:02:46]} 8. Nb3 {[%clk
0:02:52.7]} 8... dxc4 {[%clk 0:02:42.4]} 9. Bxc4 {[%clk 0:02:34.3]} 9... Nd5
{[%clk 0:02:43]} 10. Ne2 {[%clk 0:02:33.9]} 10... Nxe3 {[%clk 0:02:02.6]} 11.
fxe3 {[%clk 0:02:34.4]} 11... Qb4+ {[%clk 0:01:48.4]} 12. Nd2 {[%clk 0:02:28.6]}
12... Nb6 {[%clk 0:01:43.7]} 13. a3 {[%clk 0:02:07.7]} 13... Qe7 {[%clk
0:01:37.9]} 14. O-O {[%clk 0:02:07.4]} 14... Qg5 {[%clk 0:01:10.6]} 15. Nf3
{[%clk 0:01:56.2]} 15... Qh6 {[%clk 0:01:10.1]} 16. b3 {[%clk 0:01:21.2]} 16...
Be7 {[%clk 0:01:06.4]} 17. Ng3 {[%clk 0:01:16.6]} 17... Bg6 {[%clk 0:01:05.3]}
18. e4 {[%clk 0:01:07.6]} 18... Qxc1 {[%clk 0:01:03.1]} 19. Rfxc1 {[%clk
0:01:07.9]} 19... O-O-O {[%clk 0:00:58.4]} 20. b4 {[%clk 0:01:04.7]} 20... Kb8
{[%clk 0:00:56.5]} 21. Bb3 {[%clk 0:00:57.1]} 21... Rd7 {[%clk 0:00:52.2]} 22.
Kf2 {[%clk 0:00:56.9]} 22... Rhd8 {[%clk 0:00:49.9]} 23. Rd1 {[%clk 0:00:56.5]}
23... Na8 {[%clk 0:00:45.9]} 24. h4 {[%clk 0:00:55.8]} 24... h6 {[%clk
0:00:43.6]} 25. Ke3 {[%clk 0:00:54.3]} 25... Nc7 {[%clk 0:00:43.9]} 26. Bc4
{[%clk 0:00:51.2]} 26... a6 {[%clk 0:00:41.8]} 27. Rac1 {[%clk 0:00:45.1]} 27...
f6 {[%clk 0:00:35.4]} 28. Ne2 {[%clk 0:00:27.9]} 28... Bf7 {[%clk 0:00:30.2]}
29. Nf4 {[%clk 0:00:23.6]} 29... g5 {[%clk 0:00:24.9]} 30. Ne2 {[%clk
0:00:20.8]} 30... g4 {[%clk 0:00:24.4]} 31. exf6 {[%clk 0:00:11.6]} 31... Bxf6
{[%clk 0:00:22.4]} 32. Nh2 {[%clk 0:00:11.3]} 32... Bxh4 {[%clk 0:00:19.1]} 33.
Nxg4 {[%clk 0:00:08]} 33... Bg5+ {[%clk 0:00:20.5]} 34. Kd3 {[%clk 0:00:03.8]}
34... Bxc1 {[%clk 0:00:19.1]} 35. Rxc1 {[%clk 0:00:05.1]} 35... Bh5 {[%clk
0:00:18.4]} 36. Ne5 {[%clk 0:00:04.5]} 36... Bxe2+ {[%clk 0:00:19.8]} 37. Kxe2
{[%clk 0:00:04.9]} 37... Rxd4 {[%clk 0:00:21.7]} 38. Bd3 {[%clk 0:00:04.6]}
38... Rf8 {[%clk 0:00:20.7]} 39. Rh1 {[%clk 0:00:05]} 39... Rf6 {[%clk 0:00:20]}
40. Ng4 {[%clk 0:00:04.5]} 40... Rg6 {[%clk 0:00:20.3]} 41. Ne3 {[%clk
0:00:05.3]} 41... Rd7 {[%clk 0:00:20.2]} 42. e5 {[%clk 0:00:05.7]} 42... Rg5
{[%clk 0:00:18.4]} 43. Rxh6 {[%clk 0:00:05.6]} 43... Rxe5 {[%clk 0:00:19.2]} 44.
Bc4 {[%clk 0:00:04.5]} 44... Nd5 {[%clk 0:00:18.9]} 45. Bxd5 {[%clk 0:00:05.7]}
45... exd5 {[%clk 0:00:19.4]} 46. Kd3 {[%clk 0:00:06.2]} 46... Rg7 {[%clk
0:00:19.4]} 47. Rh2 {[%clk 0:00:03.6]} 47... Rg3 {[%clk 0:00:19.9]} 48. Kd4
{[%clk 0:00:03.9]} 48... Rgxe3 {[%clk 0:00:20.2]} 49. Kc5 {[%clk 0:00:05.4]}
49... Ka7 {[%clk 0:00:21.6]} 50. Rh7 {[%clk 0:00:05.6]} 50... Rg3 {[%clk
0:00:22.1]} 51. Kd6 {[%clk 0:00:06.6]} 51... Reg5 {[%clk 0:00:22.9]} 52. a4
{[%clk 0:00:06.3]} 52... Rg6+ {[%clk 0:00:23.8]} 53. Kc5 {[%clk 0:00:06.9]}
53... R3g4 {[%clk 0:00:23.3]} 54. b5 {[%clk 0:00:04.3]} 54... Rc4# {[%clk
0:00:24.3]} 0-1

[Event "*** Titled Tuesday Blitz"]
[Site "Chess.com"]
[Date "2019.09.03"]
[Round "9"]
[White "StoreySniper"]
[Black "newauto"]
[Result "1-0"]
[WhiteElo "2343"]
[BlackElo "1944"]
[TimeControl "180+2"]
[EndTime "17:09:10 PDT"]
[Termination "StoreySniper won by resignation"]

1. e4 {[%clk 0:03:01.9]} 1... c6 {[%clk 0:02:58.4]} 2. d3 {[%clk 0:03:01.4]}
2... d5 {[%clk 0:02:57.8]} 3. Nd2 {[%clk 0:03:02.3]} 3... e5 {[%clk 0:02:57.9]}
4. Ngf3 {[%clk 0:03:02.4]} 4... Bd6 {[%clk 0:02:56.4]} 5. g3 {[%clk 0:03:02.3]}
5... Ne7 {[%clk 0:02:54]} 6. Bg2 {[%clk 0:03:02.5]} 6... O-O {[%clk 0:02:53.9]}
7. O-O {[%clk 0:03:03.4]} 7... f5 {[%clk 0:02:53.3]} 8. c4 {[%clk 0:02:49.3]}
8... dxe4 {[%clk 0:02:48.6]} 9. dxe4 {[%clk 0:02:49.6]} 9... f4 {[%clk
0:02:49.6]} 10. c5 {[%clk 0:02:44.6]} 10... Bc7 {[%clk 0:02:44.6]} 11. Nc4
{[%clk 0:02:44.3]} 11... fxg3 {[%clk 0:02:42.1]} 12. hxg3 {[%clk 0:02:42.9]}
12... Bg4 {[%clk 0:02:40.3]} 13. Qb3 {[%clk 0:02:40.4]} 13... Kh8 {[%clk
0:02:36.3]} 14. Nfxe5 {[%clk 0:02:40.7]} 14... Be6 {[%clk 0:02:33.4]} 15. Qxb7
{[%clk 0:02:34.9]} 15... Nd7 {[%clk 0:02:31.3]} 16. Bf4 {[%clk 0:02:12.7]} 16...
Bxc4 {[%clk 0:02:11.9]} 17. Nxc4 {[%clk 0:02:05.9]} 17... Bxf4 {[%clk
0:02:10.9]} 18. gxf4 {[%clk 0:02:05.5]} 18... Nxc5 {[%clk 0:02:11.1]} 19. Qb4
{[%clk 0:01:57.3]} 19... Nd3 {[%clk 0:02:10.1]} 20. Qd6 {[%clk 0:01:53.8]} 20...
Qxd6 {[%clk 0:02:06.8]} 21. Nxd6 {[%clk 0:01:53.9]} 21... Nxf4 {[%clk
0:02:06.5]} 22. Rfd1 {[%clk 0:01:37.6]} 22... Neg6 {[%clk 0:02:00.9]} 23. Bf1
{[%clk 0:01:31.7]} 23... Nh4 {[%clk 0:02:00.6]} 24. Nf5 {[%clk 0:01:21]} 24...
Nxf5 {[%clk 0:01:49]} 25. exf5 {[%clk 0:01:21.2]} 25... Rxf5 {[%clk 0:01:48.7]}
26. Rac1 {[%clk 0:01:08.6]} 26... c5 {[%clk 0:01:39.7]} 27. Bd3 {[%clk
0:01:02.6]} 27... Nxd3 {[%clk 0:01:33.6]} 28. Rxd3 {[%clk 0:01:02.7]} 28... Raf8
{[%clk 0:01:34.3]} 29. Rc2 {[%clk 0:01:00.7]} 29... c4 {[%clk 0:01:30.8]} 30.
Rd4 {[%clk 0:00:56.7]} 30... Ra5 {[%clk 0:01:08.9]} 31. a3 {[%clk 0:00:56.1]}
31... Rb8 {[%clk 0:01:03.4]} 32. Rdxc4 {[%clk 0:00:55.2]} 32... h6 {[%clk
0:01:03.2]} 33. Rc7 {[%clk 0:00:50.7]} 33... a6 {[%clk 0:01:00.4]} 34. Ra7
{[%clk 0:00:46.2]} 34... Rb6 {[%clk 0:00:58.2]} 35. Kf1 {[%clk 0:00:44.9]} 35...
Rg5 {[%clk 0:00:53.1]} 36. b4 {[%clk 0:00:40.3]} 36... Kh7 {[%clk 0:00:44.5]}
37. Rc3 {[%clk 0:00:39.4]} 37... Rf6 {[%clk 0:00:39.7]} 38. Ke2 {[%clk 0:00:38]}
38... Rgf5 {[%clk 0:00:33.6]} 39. f3 {[%clk 0:00:37.6]} 39... Kg6 {[%clk
0:00:26.9]} 40. a4 {[%clk 0:00:32]} 40... Kh7 {[%clk 0:00:15.8]} 41. Re3 {[%clk
0:00:30.1]} 41... Rg5 {[%clk 0:00:14.2]} 42. Ree7 {[%clk 0:00:28.1]} 42... Rg2+
{[%clk 0:00:13.5]} 43. Kd3 {[%clk 0:00:22.6]} 43... Rxf3+ {[%clk 0:00:12.5]} 44.
Ke4 {[%clk 0:00:23.7]} 44... Rf6 {[%clk 0:00:13]} 45. b5 {[%clk 0:00:23.3]}
45... axb5 {[%clk 0:00:13.1]} 46. axb5 {[%clk 0:00:24.4]} 46... Rb6 {[%clk
0:00:13.1]} 47. Kf3 {[%clk 0:00:23]} 47... Rgg6 {[%clk 0:00:09.3]} 48. Ra5
{[%clk 0:00:20.4]} 48... Rgf6+ {[%clk 0:00:08.6]} 49. Kg4 {[%clk 0:00:17.5]}
49... Kg6 {[%clk 0:00:09.3]} 50. Raa7 {[%clk 0:00:17.1]} 50... h5+ {[%clk
0:00:09.9]} 51. Kg3 {[%clk 0:00:17.2]} 51... Rxb5 {[%clk 0:00:08.1]} 52. Rxg7+
{[%clk 0:00:18.6]} 52... Kf5 {[%clk 0:00:08.5]} 53. Kh4 {[%clk 0:00:18.8]} 53...
Rg6 {[%clk 0:00:08.2]} 54. Raf7+ {[%clk 0:00:18.4]} 54... Rf6 {[%clk 0:00:08.7]}
55. Rg5+ {[%clk 0:00:19.1]} 55... Ke6 {[%clk 0:00:09.1]} 56. Rxf6+ {[%clk
0:00:20.2]} 56... Kxf6 {[%clk 0:00:08.6]} 57. Rxb5 {[%clk 0:00:21.8]} 57... Kg6
{[%clk 0:00:08.5]} 58. Rxh5 {[%clk 0:00:22.6]} 1-0

[Event "*** Titled Tuesday Blitz"]
[Site "Chess.com"]
[Date "2019.09.03"]
[Round "9"]
[White "MFguimaraes"]
[Black "ecwinslow"]
[Result "1-0"]
[WhiteElo "2295"]
[BlackElo "2062"]
[TimeControl "180+2"]
[EndTime "17:09:18 PDT"]
[Termination "MFguimaraes won on time"]

1. e4 {[%clk 0:03:01.9]} 1... d6 {[%clk 0:03:00.6]} 2. d4 {[%clk 0:03:02.1]}
2... Nf6 {[%clk 0:03:02.1]} 3. Nc3 {[%clk 0:03:02.8]} 3... g6 {[%clk 0:03:03.5]}
4. f4 {[%clk 0:03:04.1]} 4... Bg7 {[%clk 0:03:05]} 5. e5 {[%clk 0:03:04.8]} 5...
Nfd7 {[%clk 0:03:04.5]} 6. Nf3 {[%clk 0:03:01.9]} 6... c5 {[%clk 0:03:03.1]} 7.
exd6 {[%clk 0:02:55.2]} 7... cxd4 {[%clk 0:03:03.5]} 8. Nxd4 {[%clk 0:02:54.9]}
8... O-O {[%clk 0:03:04.3]} 9. Be2 {[%clk 0:02:55.6]} 9... Nc6 {[%clk
0:02:59.4]} 10. Nxc6 {[%clk 0:02:56.6]} 10... bxc6 {[%clk 0:03:00]} 11. dxe7
{[%clk 0:02:58.1]} 11... Qxe7 {[%clk 0:03:00.9]} 12. O-O {[%clk 0:02:59.1]}
12... Re8 {[%clk 0:02:56.7]} 13. Bf3 {[%clk 0:02:58.1]} 13... Nf6 {[%clk
0:02:47.4]} 14. Kh1 {[%clk 0:02:52]} 14... Qc7 {[%clk 0:02:42.5]} 15. b3 {[%clk
0:02:45.4]} 15... Bf5 {[%clk 0:02:38.9]} 16. Bb2 {[%clk 0:02:43]} 16... Rad8
{[%clk 0:02:38.3]} 17. Qc1 {[%clk 0:02:42.2]} 17... Ng4 {[%clk 0:02:32.3]} 18.
Bxg4 {[%clk 0:02:30.3]} 18... Bxg4 {[%clk 0:02:32.7]} 19. h3 {[%clk 0:02:29.9]}
19... Bf5 {[%clk 0:02:22.6]} 20. Na4 {[%clk 0:02:30.1]} 20... c5 {[%clk
0:02:18]} 21. Bxg7 {[%clk 0:02:27.6]} 21... Kxg7 {[%clk 0:02:19.9]} 22. Qb2+
{[%clk 0:02:28.8]} 22... Kg8 {[%clk 0:02:19.4]} 23. Rae1 {[%clk 0:02:26.2]}
23... Rxe1 {[%clk 0:02:16]} 24. Rxe1 {[%clk 0:02:27]} 24... Qxf4 {[%clk
0:02:16.5]} 25. Qf6 {[%clk 0:02:23.6]} 25... Rf8 {[%clk 0:02:08]} 26. Nxc5
{[%clk 0:02:18.8]} 26... Qg3 {[%clk 0:01:56.9]} 27. Qe5 {[%clk 0:02:14.3]} 27...
Qh4 {[%clk 0:01:44.8]} 28. Re3 {[%clk 0:02:06.2]} 28... Rd8 {[%clk 0:01:38.5]}
29. Ne4 {[%clk 0:01:51.9]} 29... Rd1+ {[%clk 0:01:08]} 30. Kh2 {[%clk
0:01:47.7]} 30... Bxe4 {[%clk 0:01:03.6]} 31. Qxe4 {[%clk 0:01:40.9]} 31... Qf2
{[%clk 0:00:59.9]} 32. Qe8+ {[%clk 0:01:37.2]} 32... Kg7 {[%clk 0:01:00.8]} 33.
Rf3 {[%clk 0:01:34]} 33... Qg1+ {[%clk 0:00:43.8]} 34. Kg3 {[%clk 0:01:34.4]}
34... Qe1+ {[%clk 0:00:44.7]} 35. Qxe1 {[%clk 0:01:31.8]} 35... Rxe1 {[%clk
0:00:45.2]} 36. a4 {[%clk 0:01:28.2]} 36... h5 {[%clk 0:00:42.2]} 37. h4 {[%clk
0:01:29]} 37... f6 {[%clk 0:00:38]} 38. Kf2 {[%clk 0:01:26.7]} 38... Re4 {[%clk
0:00:37.2]} 39. g3 {[%clk 0:01:26.9]} 39... g5 {[%clk 0:00:36.9]} 40. Re3 {[%clk
0:01:25.2]} 40... Rd4 {[%clk 0:00:24.8]} 41. Rd3 {[%clk 0:01:26.4]} 41... Rb4
{[%clk 0:00:22.7]} 42. hxg5 {[%clk 0:01:24.5]} 42... fxg5 {[%clk 0:00:22.9]} 43.
Rd7+ {[%clk 0:01:26.1]} 43... Kf6 {[%clk 0:00:23.9]} 44. Rxa7 {[%clk 0:01:27.3]}
44... h4 {[%clk 0:00:25.1]} 45. gxh4 {[%clk 0:01:25.5]} 45... Rxh4 {[%clk
0:00:25.1]} 46. a5 {[%clk 0:01:25.4]} 46... Rh2+ {[%clk 0:00:25.8]} 47. Kg3
{[%clk 0:01:25.5]} 47... Rxc2 {[%clk 0:00:26.8]} 48. Rb7 {[%clk 0:01:23]} 48...
Ra2 {[%clk 0:00:22.2]} 49. Rb6+ {[%clk 0:01:22.3]} 49... Kf5 {[%clk 0:00:22.1]}
50. Rb5+ {[%clk 0:01:23.6]} 50... Kg6 {[%clk 0:00:23.6]} 51. b4 {[%clk
0:01:24.6]} 51... Kh5 {[%clk 0:00:22.2]} 52. Rb8 {[%clk 0:01:24.1]} 52... Ra3+
{[%clk 0:00:22.5]} 53. Kf2 {[%clk 0:01:24.8]} 53... Kg4 {[%clk 0:00:21.9]} 54.
Rb6 {[%clk 0:01:22.8]} 54... Kf4 {[%clk 0:00:22]} 55. Rf6+ {[%clk 0:01:19.8]}
55... Ke4 {[%clk 0:00:22.3]} 56. a6 {[%clk 0:01:18.8]} 56... g4 {[%clk
0:00:17.6]} 57. b5 {[%clk 0:01:17.5]} 57... Ra5 {[%clk 0:00:14]} 58. Rb6 {[%clk
0:01:06.9]} 58... Kf4 {[%clk 0:00:15]} 59. Rb7 {[%clk 0:01:06.6]} 59... Ra2+
{[%clk 0:00:15.3]} 60. Ke1 {[%clk 0:01:07.8]} 60... g3 {[%clk 0:00:14.4]} 61.
Rf7+ {[%clk 0:01:06.7]} 61... Ke3 {[%clk 0:00:15]} 62. Re7+ {[%clk 0:01:07.3]}
62... Kd3 {[%clk 0:00:15.1]} 63. Kf1 {[%clk 0:01:04.8]} 63... Kc4 {[%clk
0:00:14.2]} 64. Rb7 {[%clk 0:00:59.3]} 64... Kc5 {[%clk 0:00:07.1]} 65. a7
{[%clk 0:00:59.2]} 65... Ra5 {[%clk 0:00:04.4]} 66. b6 {[%clk 0:00:58.4]} 66...
Kc6 {[%clk 0:00:05.6]} 67. Rb8 {[%clk 0:00:58.7]} 1-0

[Event "*** Titled Tuesday Blitz"]
[Site "Chess.com"]
[Date "2019.09.03"]
[Round "9"]
[White "Jenia84"]
[Black "Denis_Palkovich"]
[Result "1-0"]
[WhiteElo "2262"]
[BlackElo "2218"]
[TimeControl "180+2"]
[EndTime "17:09:25 PDT"]
[Termination "Jenia84 won on time"]

1. d4 {[%clk 0:03:01.5]} 1... d5 {[%clk 0:02:59.9]} 2. Nf3 {[%clk 0:03:01.7]}
2... Bf5 {[%clk 0:03:00.2]} 3. Bf4 {[%clk 0:03:02.7]} 3... e6 {[%clk 0:02:59.9]}
4. e3 {[%clk 0:03:03.8]} 4... Bd6 {[%clk 0:02:59.5]} 5. Bg3 {[%clk 0:03:04]}
5... Nf6 {[%clk 0:02:59]} 6. Bd3 {[%clk 0:03:03.6]} 6... O-O {[%clk 0:02:57.7]}
7. Bxf5 {[%clk 0:03:01.9]} 7... exf5 {[%clk 0:02:59.6]} 8. Bxd6 {[%clk 0:03:01]}
8... Qxd6 {[%clk 0:02:59.8]} 9. Ne5 {[%clk 0:02:59]} 9... Ne4 {[%clk 0:02:39.5]}
10. Nd2 {[%clk 0:02:50.5]} 10... f6 {[%clk 0:02:39.3]} 11. Nd3 {[%clk
0:02:51.1]} 11... Nd7 {[%clk 0:02:31.3]} 12. Qe2 {[%clk 0:02:49.2]} 12... a5
{[%clk 0:02:27.7]} 13. f3 {[%clk 0:02:47]} 13... Nxd2 {[%clk 0:02:26.5]} 14.
Qxd2 {[%clk 0:02:47.8]} 14... Rfe8 {[%clk 0:02:25.1]} 15. O-O {[%clk 0:02:45.4]}
15... b6 {[%clk 0:02:09.2]} 16. Rae1 {[%clk 0:02:44.7]} 16... Re7 {[%clk
0:02:09.4]} 17. c3 {[%clk 0:02:42.9]} 17... Rae8 {[%clk 0:02:09.8]} 18. Nf4
{[%clk 0:02:37.9]} 18... Nf8 {[%clk 0:02:05.8]} 19. b4 {[%clk 0:02:27.9]} 19...
a4 {[%clk 0:01:53.6]} 20. a3 {[%clk 0:02:25.8]} 20... g5 {[%clk 0:01:45]} 21.
Nd3 {[%clk 0:02:23.6]} 21... Ng6 {[%clk 0:01:39.9]} 22. Nb2 {[%clk 0:02:20.6]}
22... b5 {[%clk 0:01:37.7]} 23. Nd3 {[%clk 0:02:21.3]} 23... h5 {[%clk
0:01:24.6]} 24. Nc5 {[%clk 0:02:21.3]} 24... f4 {[%clk 0:01:19.4]} 25. Qd3
{[%clk 0:02:16.8]} 25... Kg7 {[%clk 0:01:13.8]} 26. e4 {[%clk 0:02:17.6]} 26...
dxe4 {[%clk 0:00:54]} 27. Rxe4 {[%clk 0:02:07.7]} 27... c6 {[%clk 0:00:50.8]}
28. Rfe1 {[%clk 0:02:06.8]} 28... Rxe4 {[%clk 0:00:44.5]} 29. Rxe4 {[%clk
0:02:06.7]} 29... Rxe4 {[%clk 0:00:41.3]} 30. Qxe4 {[%clk 0:02:07]} 30... Qe7
{[%clk 0:00:27.7]} 31. Kf2 {[%clk 0:01:43.7]} 31... f5 {[%clk 0:00:20.1]} 32.
Qxe7+ {[%clk 0:01:38.6]} 32... Nxe7 {[%clk 0:00:22]} 33. Ke2 {[%clk 0:01:23.4]}
33... g4 {[%clk 0:00:20.8]} 34. Kd3 {[%clk 0:01:23.1]} 34... Kf6 {[%clk
0:00:21.1]} 35. Nd7+ {[%clk 0:01:21.6]} 35... Kg5 {[%clk 0:00:21.2]} 36. Ne5
{[%clk 0:01:21.1]} 36... Kh4 {[%clk 0:00:19.2]} 37. c4 {[%clk 0:01:11.1]} 37...
Kg5 {[%clk 0:00:14.6]} 38. Kc3 {[%clk 0:00:52.3]} 38... Kh4 {[%clk 0:00:14.2]}
39. d5 {[%clk 0:00:45.9]} 39... cxd5 {[%clk 0:00:08]} 40. cxb5 {[%clk
0:00:45.8]} 40... g3 {[%clk 0:00:09.9]} 41. h3 {[%clk 0:00:42.2]} 41... Nc8
{[%clk 0:00:11.2]} 42. Kd4 {[%clk 0:00:35.8]} 42... Kg5 {[%clk 0:00:08]} 43.
Kxd5 {[%clk 0:00:35.5]} 43... Kf6 {[%clk 0:00:09.5]} 44. Nd7+ {[%clk 0:00:33.2]}
44... Ke7 {[%clk 0:00:10.4]} 45. Nc5 {[%clk 0:00:30.6]} 45... Nb6+ {[%clk
0:00:10.9]} 46. Ke5 {[%clk 0:00:30.2]} 46... Nc4+ {[%clk 0:00:10.9]} 47. Kxf4
{[%clk 0:00:30.4]} 47... Nxa3 {[%clk 0:00:10.7]} 48. b6 {[%clk 0:00:28.2]} 48...
Kd6 {[%clk 0:00:10.6]} 49. Nxa4 {[%clk 0:00:27.2]} 49... Kc6 {[%clk 0:00:10.3]}
50. Kxf5 {[%clk 0:00:27.2]} 50... Nc2 {[%clk 0:00:09.5]} 51. b5+ {[%clk
0:00:27.2]} 51... Kb7 {[%clk 0:00:11.1]} 52. Kf4 {[%clk 0:00:28.1]} 52... Nd4
{[%clk 0:00:10.4]} 53. Kxg3 {[%clk 0:00:28.7]} 53... Nxb5 {[%clk 0:00:12.3]} 54.
Kh4 {[%clk 0:00:29.3]} 54... Nd4 {[%clk 0:00:08.6]} 55. Kxh5 {[%clk 0:00:30.2]}
55... Nf5 {[%clk 0:00:08.5]} 56. Kg6 {[%clk 0:00:30.1]} 56... Ne7+ {[%clk
0:00:06.8]} 57. Kf7 {[%clk 0:00:30.4]} 57... Nd5 {[%clk 0:00:06.7]} 58. h4
{[%clk 0:00:31.2]} 58... Kc6 {[%clk 0:00:04.5]} 59. h5 {[%clk 0:00:32.1]} 59...
Nf4 {[%clk 0:00:04.9]} 60. h6 {[%clk 0:00:32.7]} 1-0

[Event "*** Titled Tuesday Blitz"]
[Site "Chess.com"]
[Date "2019.09.03"]
[Round "9"]
[White "chorejason"]
[Black "Induwara_IM"]
[Result "0-1"]
[WhiteElo "2106"]
[BlackElo "2357"]
[TimeControl "180+2"]
[EndTime "17:09:37 PDT"]
[Termination "Induwara_IM won by resignation"]

1. e4 {[%clk 0:03:01.9]} 1... c6 {[%clk 0:03:00.3]} 2. d4 {[%clk 0:03:02.3]}
2... d5 {[%clk 0:03:00.8]} 3. Nc3 {[%clk 0:03:04.2]} 3... dxe4 {[%clk
0:03:01.3]} 4. Nxe4 {[%clk 0:03:06.1]} 4... Nf6 {[%clk 0:03:02.6]} 5. Nxf6+
{[%clk 0:03:07.4]} 5... exf6 {[%clk 0:03:04.5]} 6. c3 {[%clk 0:03:08.7]} 6...
Bd6 {[%clk 0:03:05.8]} 7. Bd3 {[%clk 0:03:10.5]} 7... O-O {[%clk 0:03:06.7]} 8.
Qc2 {[%clk 0:03:12.4]} 8... Re8+ {[%clk 0:03:07.6]} 9. Ne2 {[%clk 0:03:14.3]}
9... h5 {[%clk 0:03:09]} 10. Be3 {[%clk 0:03:14.6]} 10... Be6 {[%clk 0:03:10.1]}
11. O-O {[%clk 0:03:12.7]} 11... Qc7 {[%clk 0:03:03.8]} 12. h3 {[%clk
0:03:07.2]} 12... Nd7 {[%clk 0:03:00.4]} 13. c4 {[%clk 0:03:08.6]} 13... Nf8
{[%clk 0:02:46.1]} 14. Rae1 {[%clk 0:02:48.6]} 14... h4 {[%clk 0:02:35.2]} 15.
Nc3 {[%clk 0:02:42.7]} 15... Rad8 {[%clk 0:02:24]} 16. d5 {[%clk 0:02:34.9]}
16... Bc8 {[%clk 0:02:01.8]} 17. Bd4 {[%clk 0:02:02.4]} 17... a6 {[%clk
0:01:53.4]} 18. Ne4 {[%clk 0:02:03.3]} 18... Bh2+ {[%clk 0:01:51.6]} 19. Kh1
{[%clk 0:02:03.5]} 19... cxd5 {[%clk 0:01:42.7]} 20. cxd5 {[%clk 0:01:41.4]}
20... Qxc2 {[%clk 0:00:50.8]} 21. Bxc2 {[%clk 0:01:43.3]} 21... Be5 {[%clk
0:00:51.1]} 22. Bb6 {[%clk 0:00:53]} 22... Rxd5 {[%clk 0:00:32.2]} 23. f4 {[%clk
0:00:53.5]} 23... Rb5 {[%clk 0:00:32.3]} 24. Bg1 {[%clk 0:00:39.1]} 24... Rxb2
{[%clk 0:00:26.7]} 25. Bb3 {[%clk 0:00:38.2]} 25... Be6 {[%clk 0:00:18.6]} 26.
Bxe6 {[%clk 0:00:35.3]} 26... Nxe6 {[%clk 0:00:20.5]} 27. fxe5 {[%clk
0:00:36.5]} 27... fxe5 {[%clk 0:00:22.4]} 28. Rf2 {[%clk 0:00:31.8]} 28... Rxf2
{[%clk 0:00:21.9]} 29. Bxf2 {[%clk 0:00:33.7]} 29... Rd8 {[%clk 0:00:23.2]} 30.
Bxh4 {[%clk 0:00:34.2]} 30... Rd4 {[%clk 0:00:23.2]} 31. Bg3 {[%clk 0:00:31.7]}
31... f6 {[%clk 0:00:23.4]} 32. Kg1 {[%clk 0:00:33.1]} 32... Ra4 {[%clk
0:00:24.4]} 33. Nc3 {[%clk 0:00:29.3]} 33... Ra3 {[%clk 0:00:24.6]} 34. Rc1
{[%clk 0:00:29.5]} 34... Nd4 {[%clk 0:00:26]} 35. Kf2 {[%clk 0:00:25.9]} 35...
b5 {[%clk 0:00:27.3]} 36. Ke1 {[%clk 0:00:23.9]} 36... b4 {[%clk 0:00:27.4]} 37.
Nd5 {[%clk 0:00:21.5]} 37... Rxg3 {[%clk 0:00:27.7]} 38. Nxb4 {[%clk 0:00:22.2]}
38... Rxg2 {[%clk 0:00:28.9]} 39. a4 {[%clk 0:00:21.1]} 39... a5 {[%clk
0:00:29.4]} 40. Nd5 {[%clk 0:00:21.2]} 40... Rh2 {[%clk 0:00:26.9]} 41. Rc8+
{[%clk 0:00:22.2]} 41... Kh7 {[%clk 0:00:27.8]} 42. Ra8 {[%clk 0:00:24.1]} 42...
Rxh3 {[%clk 0:00:27.8]} 43. Rxa5 {[%clk 0:00:25.6]} 43... Ra3 {[%clk 0:00:28.9]}
44. Ra8 {[%clk 0:00:26.4]} 44... Nb3 {[%clk 0:00:27.3]} 45. Ne7 {[%clk
0:00:24.3]} 45... Kh6 {[%clk 0:00:26.2]} 46. Kf2 {[%clk 0:00:24.7]} 46... Kg5
{[%clk 0:00:27.2]} 47. Nd5 {[%clk 0:00:23.1]} 47... Kf5 {[%clk 0:00:26.1]} 48.
Nb6 {[%clk 0:00:24.1]} 48... g5 {[%clk 0:00:25.9]} 49. Nc4 {[%clk 0:00:23.1]}
49... Ra2+ {[%clk 0:00:27.1]} 50. Ke3 {[%clk 0:00:24.5]} 50... Nd4 {[%clk
0:00:27.9]} 51. Nd6+ {[%clk 0:00:25.1]} 51... Ke6 {[%clk 0:00:28.8]} 52. Ne4
{[%clk 0:00:25.9]} 52... Ra3+ {[%clk 0:00:28.7]} 53. Kf2 {[%clk 0:00:24.1]}
53... f5 {[%clk 0:00:23.9]} 54. Nxg5+ {[%clk 0:00:20.2]} 54... Kf6 {[%clk
0:00:24.6]} 55. Nh7+ {[%clk 0:00:19.7]} 55... Kg7 {[%clk 0:00:24.9]} 56. Nf8
{[%clk 0:00:20.8]} 56... e4 {[%clk 0:00:24.4]} 57. Nd7 {[%clk 0:00:19.5]} 57...
f4 {[%clk 0:00:24.8]} 58. Ne5 {[%clk 0:00:19.5]} 58... Ra2+ {[%clk 0:00:25.7]}
59. Kg1 {[%clk 0:00:20]} 59... f3 {[%clk 0:00:24.2]} 60. Ra7+ {[%clk 0:00:21.9]}
60... Kf6 {[%clk 0:00:25.1]} 61. Ng4+ {[%clk 0:00:23.2]} 61... Kf5 {[%clk
0:00:25.8]} 62. Ne3+ {[%clk 0:00:24.4]} 62... Kf4 {[%clk 0:00:27.3]} 63. Nd1
{[%clk 0:00:24.1]} 63... Ra1 {[%clk 0:00:27.5]} 64. Kh2 {[%clk 0:00:23.2]} 64...
Rxd1 {[%clk 0:00:28]} 65. Rf7+ {[%clk 0:00:25.1]} 65... Nf5 {[%clk 0:00:27.7]}
66. a5 {[%clk 0:00:27]} 66... Rd2+ {[%clk 0:00:28.1]} 67. Kh3 {[%clk 0:00:27.3]}
67... Rd1 {[%clk 0:00:29.1]} 68. Kh2 {[%clk 0:00:28.4]} 68... Ra1 {[%clk
0:00:30.3]} 69. Ra7 {[%clk 0:00:25.1]} 69... f2 {[%clk 0:00:31.4]} 0-1